Workbook

Sheet Лист1
A2: № | B2: Показатель | C2: Варианты ответов на вопросы, при изучении мнений получателей услуг | D2: Варианты значений в баллах | E2: Получатели услуги | I2: Сумма баллов по каждому вопросу | K2: Количество ответивших на вопрос | L2: Средняя оценка по вопросу
E3: до25 | F3: 26-40 | G3: 41-60 | H3: ст.60 | I3: (Σ mijp) | K3: (p) | L3: (Σmijp)/p)
A4: 1 | B4: 2 | C4: 3 | D4: 4 | E4: 5 | F4: 6 | G4: 7 | H4: 8 | I4: 15 | K4: 16 | L4: 17=15/16
A5: j1 | B5: Доступность и актуальность информации о деятельности организации культуры, размещенной на территории организации | C5: Отлично, все устраивает | D5: 10 | E5: 30 | F5: 28 | G5: 18 | H5: 9 | I5: =SUM(E5:H5)*10 -> 850 | J5: =SUM(I5:I9) -> 1315 | K5: 150 | L5: =J5/K5 -> 8.766666667
C6: В целом хорошо | D6: 7.5 | E6: 14 | F6: 20 | G6: 15 | H6: 7 | I6: =SUM(E6:H6)*7.5 -> 420
C7: Удовлетворительно, незначительные недостатки | D7: 5 | E7: 1 | F7: 2 | G7: 5 | H7: 1 | I7: =SUM(E7:H7)*5 -> 45
C8: Плохо, много недостатков | D8: 2.5 | I8: =SUM(E8:H8)*2.5 -> 0
C9: Неудовлетворительно, совершенно не устраивает | D9: 0 | I9: =SUM(E9:H9) -> 0
A10: j2 | B10: Комфортность условий пребывания в организации культуры | C10: Отлично, все устраивает | D10: 10 | E10: 23 | F10: 18 | G10: 12 | H10: 9 | I10: =SUM(E10:H10)*10 -> 620 | J10: =SUM(I10:I14) -> 1165 | K10: 150 | L10: =J10/K10 -> 7.766666667
C11: В целом хорошо | D11: 7.5 | E11: 12 | F11: 15 | G11: 14 | H11: 5 | I11: =SUM(E11:H11)*7.5 -> 345
C12: Удовлетворительно, незначительные недостатки | D12: 5 | E12: 8 | F12: 16 | G12: 11 | H12: 3 | I12: =SUM(E12:H12)*5 -> 190
C13: Плохо, много недостатков | D13: 2.5 | E13: 1 | F13: 2 | G13: 1 | I13: =SUM(E13:H13)*2.5 -> 10
C14: Неудовлетворительно, совершенно не устраивает | D14: 0 | I14: =SUM(E14:H14) -> 0
A15: j3 | B15: Дополнительные услуги и доступность их получения | C15: Отлично, все устраивает | D15: 10 | E15: 22 | F15: 17 | G15: 18 | H15: 8 | I15: =SUM(E15:H15)*10 -> 650 | J15: =SUM(I15:I19) -> 1240 | K15: 150 | L15: =J15/K15 -> 8.266666667
C16: В целом хорошо | D16: 7.5 | E16: 22 | F16: 25 | G16: 12 | H16: 8 | I16: =SUM(E16:H16)*7.5 -> 502.5
C17: Удовлетворительно, незначительные недостатки | D17: 5 | E17: 1 | F17: 9 | G17: 6 | H17: 1 | I17: =SUM(E17:H17)*5 -> 85
C18: Плохо, много недостатков | D18: 2.5 | G18: 1 | I18: =SUM(E18:H18)*2.5 -> 2.5
C19: Неудовлетворительно, совершенно не устраивает | D19: 0 | I19: =SUM(E19:H19) -> 0
A20: j4 | B20: Удобство пользования электронными сервисами, предоставляемыми организацией культуры (в том числе с помощью мобильных устройств) | C20: Отлично, все устраивает | D20: 10 | E20: 12 | F20: 17 | G20: 9 | H20: 6 | I20: =SUM(E20:H20)*10 -> 440 | J20: =SUM(I20:I24) -> 1185 | K20: 150 | L20: =J20/K20 -> 7.9
C21: В целом хорошо | D21: 7.5 | E21: 29 | F21: 31 | G21: 18 | H21: 8 | I21: =SUM(E21:H21)*7.5 -> 645
C22: Удовлетворительно, незначительные недостатки | D22: 5 | E22: 4 | F22: 4 | G22: 9 | H22: 3 | I22: =SUM(E22:H22)*5 -> 100
C23: Плохо, много недостатков | D23: 2.5 | I23: =SUM(E23:H23)*2.5 -> 0
C24: Неудовлетворительно, совершенно не устраивает | D24: 0 | I24: =SUM(E24:H24) -> 0
A25: j5 | B25: Удобство графика работы организации культуры | C25: Отлично, очень удобно | D25: 10 | E25: 31 | F25: 39 | G25: 26 | H25: 13 | I25: =SUM(E25:H25)*10 -> 1090 | J25: =SUM(I25:I29) -> 1387.5 | K25: 150 | L25: =J25/K25 -> 9.25
C26: В целом хорошо | D26: 7.5 | E26: 12 | F26: 11 | G26: 10 | H26: 4 | I26: =SUM(E26:H26)*7.5 -> 277.5
C27: Удовлетворительно, незначительные недостатки | D27: 5 | E27: 1 | F27: 1 | G27: 2 | I27: =SUM(E27:H27)*5 -> 20
C28: Плохо, много недостатков | D28: 2.5 | I28: =SUM(E28:H28)*2.5 -> 0
C29: Совершенно не удобно | D29: 0 | I29: =SUM(E29:H29) -> 0
A30: j6 | B30: Доступность услуг для инвалидов | C30: Обеспечение возможности для инвалидов посадки в транспортное средство и высадки из него перед входом в организацию культуры, в том числе с использованием кресла-коляски | D30: да (2) | I30: =SUM(E30:H30)*2 -> 0 | J30: =SUM(I30:I39) -> 0 | K30: 150 | L30: =J30/K30 -> 0
D31: нет (0) | E31: 44 | F31: 51 | G31: 38 | H31: 17
C32: Оснащение организации специальными устройствами для доступа инвалидов (оборудование входных зон, раздвижные двери, приспособленные перила, доступных санитарно-гигиенических помещений, звуковые устройства для инвалидов по зрению и т.п.) | D32: да (2) | I32: =SUM(E32:H32)*2 -> 0
D33: нет (0) | E33: 44 | F33: 51 | G33: 38 | H33: 17
C34: Наличие сопровождающего персонала и возможности самостоятельного передвижения по территории организации | D34: да (2) | I34: =SUM(E34:H34)*2 -> 0
D35: нет (0) | E35: 44 | F35: 51 | G35: 38 | H35: 17
C36: Компетентность работы персонала с посетителями-инвалидами | D36: да (2) | I36: =SUM(E36:H36)*2 -> 0
D37: нет (0) | E37: 44 | F37: 51 | G37: 38 | H37: 17
C38: Размещение информации, необходимой для обеспечения беспрепятственного доступа инвалидов к учреждению и услугам (дублирование необходимой для получения услуги звуковой и зрительной информации, а также надписей, знаков и иной текстовой и графической информации знаками, выполненными рельефно-точечным шрифтом Брайля и на контрастном фоне) | D38: да (2) | I38: =SUM(E38:H38)*2 -> 0
D39: нет (0) | E39: 44 | F39: 51 | G39: 38 | H39: 17
A40: j7 | B40: Соблюдение режима работы организацией культуры | C40: Отлично, все устраивает | D40: 10 | E40: 38 | F40: 37 | G40: 28 | H40: 14 | I40: =SUM(E40:H40)*10 -> 1170 | J40: =SUM(I40:I44) -> 1407.5 | K40: 150 | L40: =J40/K40 -> 9.383333333
C41: В целом хорошо | D41: 7.5 | E41: 5 | F41: 12 | G41: 10 | H41: 2 | I41: =SUM(E41:H41)*7.5 -> 217.5
C42: Удовлетворительно, незначительные нарушения | D42: 5 | E42: 1 | F42: 2 | H42: 1 | I42: =SUM(E42:H42)*5 -> 20
C43: Плохо, много нарушений | D43: 2.5 | I43: =SUM(E43:H43)*2.5 -> 0
C44: Неудовлетворительно, совершенно не соблюдается | D44: 0 | I44: =SUM(E44:H44) -> 0
A45: j8 | B45: Соблюдение установленных (заявленных) сроков предоставления услуг организацией культуры | C45: Отлично, все устраивает | D45: 10 | E45: 22 | F45: 28 | G45: 22 | H45: 12 | I45: =SUM(E45:H45)*10 -> 840 | J45: =SUM(I45:I49) -> 1317.5 | K45: 150 | L45: =J45/K45 -> 8.783333333
C46: В целом хорошо | D46: 7.5 | E46: 21 | F46: 22 | G46: 14 | H46: 3 | I46: =SUM(E46:H46)*7.5 -> 450
C47: Удовлетворительно, незначительные нарушения | D47: 5 | E47: 1 | F47: 1 | G47: 1 | H47: 2 | I47: =SUM(E47:H47)*5 -> 25
C48: Плохо, много нарушений | D48: 2.5 | G48: 1 | I48: =SUM(E48:H48)*2.5 -> 2.5
C49: Неудовлетворительно, совершенно не соблюдаются | D49: 0 | I49: =SUM(E49:H49) -> 0
A50: j9 | B50: Доброжелательность и вежливость персонала организации культуры | C50: Отлично, все устраивает | D50: 10 | E50: 32 | F50: 41 | G50: 32 | H50: 13 | I50: =SUM(E50:H50)*10 -> 1180 | J50: =SUM(I50:I54) -> 1410 | K50: 150 | L50: =J50/K50 -> 9.4
C51: В целом хорошо | D51: 7.5 | E51: 11 | F51: 9 | G51: 5 | H51: 3 | I51: =SUM(E51:H51)*7.5 -> 210
C52: Удовлетворительно | D52: 5 | E52: 1 | F52: 1 | G52: 1 | H52: 1 | I52: =SUM(E52:H52)*5 -> 20
C53: Плохо | D53: 2.5 | I53: =SUM(E53:H53)*2.5 -> 0
C54: Неудовлетворительно | D54: 0 | I54: =SUM(E54:H54) -> 0
A55: j10 | B55: Компетентность персонала организации культуры | C55: Отлично, все устраивает | D55: 10 | E55: 34 | F55: 38 | G55: 27 | H55: 12 | I55: =SUM(E55:H55)*10 -> 1110 | J55: =SUM(I55:I59) -> 1395 | K55: 150 | L55: =J55/K55 -> 9.3
C56: В целом хорошо | D56: 7.5 | E56: 10 | F56: 12 | G56: 10 | H56: 4 | I56: =SUM(E56:H56)*7.5 -> 270
C57: Удовлетворительно | D57: 5 | F57: 1 | G57: 1 | H57: 1 | I57: =SUM(E57:H57)*5 -> 15
C58: Плохо | D58: 2.5 | I58: =SUM(E58:H58)*2.5 -> 0
C59: Неудовлетворительно | D59: 0 | I59: =SUM(E59:H59) -> 0
A60: j11 | B60: Удовлетворенность качеством оказания услуг организацией культуры в целом | C60: Отлично, все устраивает | D60: 10 | E60: 27 | F60: 29 | G60: 24 | H60: 12 | I60: =SUM(E60:H60)*10 -> 920 | J60: =SUM(I60:I64) -> 1340 | K60: 150 | L60: =J60/K60 -> 8.933333333
C61: В целом хорошо | D61: 7.5 | E61: 15 | F61: 22 | G61: 12 | H61: 3 | I61: =SUM(E61:H61)*7.5 -> 390
C62: Удовлетворительно, незначительные недостатки | D62: 5 | E62: 1 | F62: 2 | G62: 1 | H62: 2 | I62: =SUM(E62:H62)*5 -> 30
C63: Плохо, много недостатков | D63: 2.5 | I63: =SUM(E63:H63)*2.5 -> 0
C64: Неудовлетворительно, совершенно не устраивает | D64: 0 | I64: =SUM(E64:H64) -> 0
A65: j12 | B65: Удовлетворенность материально-техническим обеспечением организации культуры | C65: Отлично, все устраивает | D65: 10 | E65: 9 | F65: 5 | G65: 15 | H65: 7 | I65: =SUM(E65:H65)*10 -> 360 | J65: =SUM(I65:I69) -> 1017.5 | K65: 150 | L65: =J65/K65 -> 6.783333333
C66: В целом хорошо | D66: 7.5 | E66: 21 | F66: 25 | G66: 8 | H66: 6 | I66: =SUM(E66:H66)*7.5 -> 450
C67: Удовлетворительно, незначительные недостатки | D67: 5 | E67: 8 | F67: 12 | G67: 9 | H67: 3 | I67: =SUM(E67:H67)*5 -> 160
C68: Плохо, много недостатков | D68: 2.5 | E68: 6 | F68: 6 | G68: 4 | H68: 1 | I68: =SUM(E68:H68)*2.5 -> 42.5
C69: Неудовлетворительно, совершенно не устраивает | D69: 0 | F69: 3 | G69: 2 | I69: =SUM(E69:H69) -> 5
A70: j13 | B70: Удовлетворенность качеством и полнотой информации о деятельности организации культуры, размещенной на официальном сайте организации культуры в сети «интернет» | C70: Отлично, все устраивает | D70: 10 | E70: 26 | F70: 21 | G70: 14 | H70: 5 | I70: =SUM(E70:H70)*10 -> 660 | J70: =SUM(I70:I74) -> 1252.5 | K70: 150 | L70: =J70/K70 -> 8.35
C71: В целом хорошо | D71: 7.5 | E71: 19 | F71: 24 | G71: 19 | H71: 8 | I71: =SUM(E71:H71)*7.5 -> 525
C72: Удовлетворительно, незначительные недостатки | D72: 5 | E72: 1 | F72: 5 | G72: 3 | H72: 4 | I72: =SUM(E72:H72)*5 -> 65
C73: Плохо, много недостатков | D73: 2.5 | G73: 1 | I73: =SUM(E73:H73)*2.5 -> 2.5
C74: Неудовлетворительно, совершенно не устраивает | D74: 0 | I74: =SUM(E74:H74) -> 0
A75: j14 | B75: Удовлетворенность качеством и содержанием полиграфических материалов организации культуры | C75: Отлично, все устраивает | D75: 10 | E75: 18 | F75: 15 | G75: 14 | H75: 6 | I75: =SUM(E75:H75)*10 -> 530 | J75: =SUM(I75:I79) -> 1220 | K75: 150 | L75: =J75/K75 -> 8.133333333
C76: В целом хорошо | D76: 7.5 | E76: 23 | F76: 33 | G76: 19 | H76: 7 | I76: =SUM(E76:H76)*7.5 -> 615
C77: Удовлетворительно, незначительные недостатки | D77: 5 | E77: 3 | F77: 3 | G77: 5 | H77: 4 | I77: =SUM(E77:H77)*5 -> 75
C78: Плохо, много недостатков | D78: 2.5 | I78: =SUM(E78:H78)*2.5 -> 0
C79: Неудовлетворительно, совершенно не устраивает | D79: 0 | I79: =SUM(E79:H79) -> 0

Sheet Лист2

Sheet Лист3
